bitfinex-derivatives/quotes_SOLF0:USTF0_20220108
["timestamp","ask_amount","ask_price","bid_price","bid_amount"]
[1641620905872,3.31806166,140.86,140.85,4.0]
[1641620906272,3.31806166,140.86,140.81,27.66479]
[1641620906472,3.31806166,140.86,140.84,4.0]
[1641620907073,3.31806166,140.9,140.81,27.66479]
[1641620907272,3.31806166,140.9,140.83,4.0]
[1641620907872,3.31806166,140.9,140.81,27.66479]
[1641620908274,3.31806166,140.9,140.84,4.0]
[1641620909976,3.31806166,140.9,140.81,27.66479]
[1641620910175,3.31806166,140.9,140.81,4.0]
[1641620910377,3.31806166,140.9,140.79,4.0]
[1641620910575,35.3838,140.89,140.8,4.0]
[1641620910976,50.44189156,140.89,140.8,4.0]
[1641620911177,50.44189156,140.89,140.81,4.0]
[1641620911374,50.44189156,140.89,140.77,63.23059]
[1641620911375,50.44189156,140.89,140.8,4.0]
[1641620911975,50.44189156,140.89,140.77,35.5658]
[1641620912176,78.10668156,140.89,140.8,27.66479]
[1641620912377,3.31806166,140.88,140.8,27.66479]
[1641620912577,3.31806166,140.88,140.81,4.0]
[1641620915484,3.31806166,140.88,140.82,4.0]
[1641620915685,3.31806166,140.88,140.85,4.0]
[1641620916487,63.04859,140.89,140.85,4.0]
[1641620916785,27.66479,140.89,140.81,45.98484417]
[1641620916985,27.66479,140.89,140.86,4.0]
[1641620917185,27.66479,140.91,140.86,4.0]
[1641620919788,27.66479,140.91,140.81,45.98484417]
[1641620920789,27.66479,140.91,140.84,4.0]
[1641620921790,27.66479,140.91,140.81,45.98484417]
[1641620921987,27.66479,140.91,140.84,4.0]
[1641620922190,27.66479,140.91,140.81,45.98484417]
[1641620922488,27.66479,140.91,140.85,4.0]
[1641620926793,27.66479,140.91,140.84,27.66479]
[1641620926994,10.78,140.92,140.81,45.98484417]
[1641620927194,10.78,140.92,140.84,4.0]
[1641620927594,27.66479,140.91,140.84,31.66479]
[1641620927894,27.66479,140.91,140.84,27.66479]
[1641620928094,27.66479,140.91,140.85,4.0]
[1641620928294,3.30893142,140.9,140.84,27.66479]
[1641620928494,3.30893142,140.9,140.86,4.0]
[1641620929099,3.30893142,140.9,140.85,4.0]
[1641620929500,3.30893142,140.9,140.84,27.66479]
[1641620929701,3.30893142,140.9,140.85,4.0]
[1641620929999,3.30893142,140.9,140.84,27.66479]
[1641620930602,3.30893142,140.9,140.86,4.0]
[1641620931106,3.30893142,140.9,140.84,27.66479]
[1641620931304,3.30893142,140.9,140.86,4.0]
[1641620932107,3.30893142,140.9,140.85,4.0]
[1641620932606,18.36702298,140.9,140.85,4.0]
[1641620932907,18.36702298,140.9,140.84,31.66479]
[1641620933208,18.36702298,140.9,140.84,27.66479]
[1641620933408,18.36702298,140.9,140.87,4.0]
[1641620933606,18.36702298,140.9,140.86,4.0]
[1641620934007,18.36702298,140.9,140.84,27.66479]
[1641620934608,18.36702298,140.9,140.85,4.0]
[1641620934809,18.36702298,140.9,140.84,27.66479]
[1641620935008,18.36702298,140.9,140.87,4.0]
[1641620935308,18.36702298,140.9,140.84,27.66479]
[1641620935508,18.36702298,140.9,140.87,4.0]
[1641620935909,3.30893142,140.9,140.87,4.0]
[1641620936309,3.30893142,140.9,140.84,27.66479]
[1641620936708,3.30893142,140.9,140.86,4.0]
[1641620937108,3.30893142,140.9,140.84,27.66479]
[1641620937810,18.36702298,140.9,140.84,27.66479]
[1641620939111,18.36702298,140.9,140.85,4.0]
[1641620940013,18.36702298,140.9,140.87,4.0]
[1641620940214,18.36702298,140.9,140.84,27.66479]
[1641620940513,18.36702298,140.9,140.88,4.0]
[1641620940712,18.36702298,140.9,140.84,31.66479]
[1641620940913,5.02510618,140.87,140.84,36.68989618]
[1641620941113,5.02510618,140.87,140.86,4.0]
[1641620941915,5.02510618,140.89,140.86,4.0]
[1641620942216,5.02510618,140.89,140.88,4.0]
[1641620942615,3.30893142,140.9,140.88,4.0]
[1641620943117,3.30893142,140.9,140.85,5.02510618]
[1641620943517,3.30893142,140.92,140.88,5.02510618]
[1641620943717,3.30893142,140.92,140.9,4.0]
[1641620943919,3.30893142,140.92,140.88,5.02510618]
[1641620944118,3.30893142,140.92,140.9,4.0]
[1641620944719,3.30893142,140.92,140.91,4.0]
[1641620946221,15.05809156,140.94,140.91,4.0]
[1641620946422,3.142e-05,140.95,140.9,5.02510618]
[1641620946623,3.142e-05,140.95,140.94,4.0]
[1641620947227,15.05809156,141.0,140.94,4.0]
[1641620947422,15.05809156,141.0,140.93,5.02510618]
[1641620947625,15.05809156,141.0,140.99,4.0]
[1641620947826,15.05809156,141.0,140.99,39.32179]
[1641620948223,15.05809156,141.03,140.99,39.32179]
[1641620949325,15.05809156,141.03,140.99,35.32179]
[1641620949527,83.66089156,141.06,141.02,4.0]
[1641620949727,15.05809156,141.06,141.03,4.0]
[1641620950126,15.05809156,141.06,141.01,4.0]
[1641620950325,15.05809156,141.06,140.99,35.32179]
[1641620950526,15.05809156,141.06,141.05,4.0]
[1641620950929,27.66479,141.08,141.05,4.0]
[1641620951128,27.66479,141.08,141.01,4.0]
[1641620951428,27.66479,141.08,141.06,4.0]
[1641620953731,38.10479,141.1,141.07,4.0]
[1641620953931,58.81113112,141.2,140.99,27.66479]
[1641620953932,267.60087707,141.59,141.09,4.0]
[1641620954133,93.22512944,141.35,141.31,2509.26956577]
[1641620954333,93.22512944,141.35,141.34,4.0]
[1641620954531,89.06502944,141.35,141.34,4.0]
[1641620954735,53.64502944,141.35,141.34,4.0]
[1641620954933,30.94502944,141.35,141.34,8.80336441]
[1641620955232,193.42003925,141.42,141.34,15.86700784]
[1641620955433,193.42003925,141.42,141.41,4.0]
[1641620955634,10.78,141.58,141.41,11.06214689]
[1641620955833,32.4134,141.57,141.49,27.66479]
[1641620956033,108.97551463,141.62,141.49,27.66479]
[1641620956433,28.10096076,141.61,141.5,0.80336441]
[1641620956834,28.10096076,141.61,141.52,7.05865744]
[1641620957036,28.10096076,141.61,141.52,7.05890658]
[1641620957636,28.10096076,141.61,141.49,27.66479]
[1641620957935,27.66479,141.58,141.49,27.66479]
[1641620958336,28.10096076,141.57,141.49,27.66479]
[1641620959036,4.01442297,141.57,141.49,27.66479]
[1641620959241,28.10096076,141.6,141.49,27.66479]
[1641620959839,28.10096076,141.6,141.53,27.66479]
[1641620961237,28.10096076,141.6,141.49,19.6368367]
[1641620961437,28.10096076,141.6,141.52,124.40723396]
[1641620961842,28.10096076,141.6,141.54,27.66479]
[1641620962239,28.10096076,141.6,141.52,124.40723396]
[1641620962738,28.10096076,141.61,141.52,124.40723396]
[1641620962938,28.10096076,141.59,141.52,124.40723396]
[1641620963338,28.10096076,141.61,141.52,124.40723396]
[1641620964039,27.66479,141.59,141.52,124.40723396]
[1641620964639,28.10096076,141.58,141.52,124.40723396]
[1641620965042,28.10096076,141.58,141.52,96.40723396]
[1641620965441,20.0,141.53,141.43,7.06314451]
[1641620965941,27.66479,141.51,141.43,34.72793451]
[1641620966141,27.66479,141.51,141.43,27.66479]
[1641620966342,27.66479,141.51,141.41,27.66479]
[1641620966541,28.10096076,141.5,141.41,27.66479]
[1641620966942,28.10096076,141.5,141.42,0.80319113]
[1641620967544,28.10096076,141.5,141.42,4.80319113]
[1641620967742,28.10096076,141.5,141.44,7.06289508]
[1641620967743,4.01442297,141.5,141.44,7.06289508]
[1641620968042,4.01442297,141.5,141.49,4.0]
[1641620968242,4.01442297,141.5,141.46,38.72668753]
[1641620968442,28.09898321,141.57,141.47,7.06114956]
[1641620969944,28.09898321,141.57,141.5,27.66479]
[1641620970743,28.09898321,141.57,141.48,7.06065099]
[1641620971844,28.09898321,141.57,141.5,7.05965408]
[1641620972044,28.09898321,141.57,141.52,27.66479]
[1641620972245,28.09898321,141.57,141.53,7.05840833]
[1641620973044,28.09898321,141.57,141.54,4.0]
[1641620973246,28.09898321,141.57,141.54,10.102]
[1641620973445,28.09898321,141.61,141.56,7.05691401]
[1641620973844,32.2987,141.66,141.58,4.0]
[1641620974044,32.2987,141.66,141.58,27.66479]
[1641620974244,24.07380988,141.65,141.58,27.66479]
[1641620975146,44.07380988,141.65,141.52,34.72344744]
[1641620975350,20.0,141.64,141.52,34.72344744]
[1641620975545,44.07380988,141.64,141.52,34.72344744]
[1641620975746,24.07380988,141.64,141.52,34.72344744]
[1641620976045,51.73859988,141.63,141.52,34.72344744]
[1641620976747,24.07380988,141.62,141.52,27.66479]
[1641620976946,24.07380988,141.62,141.54,7.05766109]
[1641620977547,24.07380988,141.62,141.57,7.05641605]
[1641620978045,24.07380988,141.62,141.55,0.80248356]
[1641620978046,24.07380988,141.62,141.58,27.66479]
[1641620978247,24.07380988,141.65,141.58,27.66479]
[1641620978648,24.07380988,141.65,141.59,7.05542033]
[1641620978852,24.07380988,141.65,141.56,7.05666502]
[1641620979547,24.07380988,141.66,141.56,7.05666502]
[1641620979947,27.66479,141.63,141.56,7.05666502]
[1641620980547,24.07380988,141.62,141.56,7.05666502]
[1641620980948,24.07380988,141.62,141.56,11.05666502]
[1641620981650,24.07380988,141.62,141.59,7.05542033]
[1641620981954,24.07380988,141.62,141.59,34.72021033]
[1641620982353,24.07380988,141.64,141.59,34.72021033]
[1641620982955,4.8455821,141.66,141.59,34.72021033]
[1641620982956,4.8455821,141.6,141.59,34.72021033]
[1641620983955,4.8455821,141.6,141.59,22.68439057]
[1641620985057,14.90091254,141.63,141.59,22.68439057]
[1641620985258,14.90091254,141.61,141.57,27.66479]
[1641620985459,14.90091254,141.61,141.53,4.0]
[1641620985859,24.07396907,141.6,141.51,28.22865208]
[1641620986159,4.97981119,141.56,141.53,4.0]
[1641620987262,14.90091254,141.57,141.53,4.0]
[1641620987562,14.90091254,141.57,141.56,4.0]
[1641620988164,14.90091254,141.57,141.56,31.66479]
[1641620988565,14.50651254,141.57,141.56,31.66479]
[1641620988966,4.01221287,141.57,141.56,31.66479]
[1641620989466,28.08579791,141.63,141.56,31.66479]
[1641620990672,3.23166755,141.62,141.56,27.66479]
[1641620990869,15.14195149,141.62,141.53,11.05791015]
[1641620991468,28.08579791,141.61,141.53,11.05791015]
[1641620991669,28.08579791,141.61,141.53,7.05791015]
[1641620991869,28.08579791,141.61,141.53,11.05791015]
[1641620992068,28.08579791,141.61,141.55,27.66479]
[1641620992469,3.23166755,141.6,141.55,27.66479]
[1641620993069,28.08579791,141.59,141.55,27.66479]
[1641620993469,28.08579791,141.59,141.52,4.0]
[1641620993670,28.08579791,141.59,141.5,4.0]
[1641620993871,28.08579791,141.59,141.48,14.2391525]
[1641620994071,27.66479,141.57,141.51,4.0]
[1641620994271,27.66479,141.57,141.48,14.2391525]
[1641620994471,28.08579791,141.56,141.49,4.0]
[1641620995273,31.31746546,141.56,141.48,18.2391525]
[1641620995875,7.24388042,141.56,141.5,0.80269011]
[1641620996273,3.23166755,141.55,141.5,0.80269011]
[1641620996473,7.24388042,141.55,141.49,0.80269011]
[1641620996873,4.01221287,141.54,141.49,0.80269011]
[1641620997274,7.24388042,141.54,141.49,0.80269011]
[1641620997675,7.24388042,141.54,141.49,4.80269011]
[1641620997875,4.01221287,141.53,141.49,4.80269011]
[1641620998275,4.01221287,141.53,141.5,0.80269011]
[1641620998877,28.09573144,141.57,141.49,0.80269011]
[1641620999082,4.01221287,141.52,141.48,18.2391525]
[1641620999679,28.09512511,141.57,141.49,0.80276374]
[1641621000682,15.15207772,141.56,141.49,0.80276374]
[1641621001085,28.09512511,141.55,141.49,0.80276374]
[1641621001484,28.09512511,141.55,141.48,4.80276374]
[1641621001883,28.09512511,141.55,141.49,0.80276374]
[1641621002283,3.24179378,141.54,141.49,0.80276374]
[1641621002684,4.01221287,141.53,141.49,0.80276374]
[1641621002884,4.01221287,141.53,141.49,4.80276374]
[1641621003384,4.99473364,141.51,141.49,4.80276374]
[1641621003587,4.99473364,141.51,141.49,0.80276374]
[1641621003787,4.99473364,141.51,141.5,0.80276374]
[1641621004189,9.00694651,141.51,141.49,0.80276374]
[1641621004790,4.01221287,141.5,141.48,0.80276374]
[1641621004990,9.00694651,141.5,141.48,0.80276374]
[1641621005490,4.01221287,141.49,141.48,0.80276374]
[1641621006192,4.01221287,141.49,141.48,4.80276374]
[1641621006692,4.99473364,141.5,141.48,4.80276374]
[1641621006891,4.99473364,141.5,141.49,4.0]
[1641621007092,4.99473364,141.52,141.49,4.0]
[1641621007292,4.99473364,141.52,141.48,7.05915572]
[1641621007693,4.99473364,141.52,141.51,4.0]
[1641621007992,4.99473364,141.53,141.51,4.0]
[1641621008192,4.99473364,141.53,141.51,4.80265708]
[1641621008594,4.99473364,141.53,141.52,4.0]
[1641621008796,4.99473364,141.53,141.52,0.80265708]
[1641621010197,4.99473364,141.53,141.52,4.80265708]
[1641621012196,4.99473364,141.54,141.52,4.80265708]
[1641621012396,4.99473364,141.54,141.53,4.0]
[1641621012597,4.99473364,141.54,141.53,4.80265708]
[1641621012796,3.24134237,141.58,141.53,32.46744708]
[1641621012996,53.77921714,141.61,141.53,28.46744708]
[1641621013397,53.77921714,141.61,141.55,4.0]
[1641621013800,53.77921714,141.61,141.54,0.80265708]
[1641621013998,38.56616583,141.62,141.56,4.80265708]
[1641621014199,38.56616583,141.62,141.56,0.80265708]
[1641621014399,38.56616583,141.62,141.58,4.0]
[1641621014799,38.56616583,141.62,141.59,0.80265708]
[1641621015198,38.56616583,141.62,141.54,0.80265708]
[1641621015399,38.56616583,141.62,141.56,4.0]
[1641621016000,38.56616583,141.62,141.57,0.80265708]
[1641621016402,38.56616583,141.62,141.56,4.0]
[1641621016700,38.56616583,141.62,141.57,0.80265708]
[1641621017604,38.56616583,141.62,141.54,0.80265708]
[1641621018203,38.56616583,141.62,141.56,4.0]
[1641621018604,38.56616583,141.61,141.56,4.0]
[1641621018804,38.56616583,141.61,141.57,0.80265708]
[1641621019203,14.98542787,141.58,141.57,0.80265708]
[1641621019805,14.98542787,141.58,141.54,0.80265708]
[1641621020005,14.98542787,141.58,141.56,4.0]
[1641621020211,14.98542787,141.58,141.53,24.4433344]
[1641621020609,32.43093224,141.63,141.53,24.4433344]
[1641621020610,14.98542787,141.59,141.53,24.4433344]
[1641621021612,14.98542787,141.58,141.53,24.4433344]
[1641621023314,14.98542787,141.58,141.53,28.4433344]
[1641621023614,14.98542787,141.58,141.53,24.4433344]
[1641621023816,14.98542787,141.59,141.53,24.4433344]
[1641621025219,14.98542787,141.59,141.53,28.4433344]
[1641621025416,14.98542787,141.58,141.53,28.4433344]
[1641621025617,14.98542787,141.58,141.53,24.4433344]
[1641621027318,4.0,141.57,141.53,24.4433344]
[1641621027718,14.98542787,141.56,141.49,27.66479]
[1641621028118,18.99902308,141.56,141.49,27.66479]
[1641621028419,14.98542787,141.56,141.5,0.80273277]
[1641621028920,14.98542787,141.53,141.5,0.80273277]
[1641621033824,14.98542787,141.53,141.5,4.80273277]
[1641621034025,14.98542787,141.53,141.5,11.86213766]
[1641621034225,14.98542787,141.53,141.5,7.86213766]
[1641621034424,14.98542787,141.53,141.51,0.80273277]
[1641621034626,3.24134237,141.55,141.51,0.80273277]
[1641621035426,18.22677024,141.57,141.51,0.80273277]
[1641621036227,14.98542787,141.56,141.51,0.80273277]
[1641621036830,14.98542787,141.56,141.51,7.86139021]
[1641621037029,18.22677024,141.57,141.51,7.86139021]
[1641621037430,18.22677024,141.57,141.52,0.80273277]
[1641621037831,3.24134237,141.57,141.52,0.80273277]
[1641621038531,18.22677024,141.57,141.52,0.80273277]
[1641621040437,14.98542787,141.56,141.52,0.80273277]
[1641621042838,14.98542787,141.57,141.52,0.80273277]
[1641621043240,14.98542787,141.57,141.53,27.66479]
[1641621043839,14.98542787,141.58,141.54,0.80273277]
[1641621046142,14.98542787,141.59,141.54,0.80273277]
[1641621046542,14.98542787,141.59,141.54,7.05741205]
[1641621046943,14.98542787,141.59,141.55,0.80273277]
[1641621048946,14.98542787,141.59,141.56,7.05641605]
[1641621049547,14.98542787,141.59,141.57,0.80273277]
[1641621050149,14.98542787,141.61,141.57,0.80273277]
[1641621050448,4.0,141.6,141.57,0.80273277]
[1641621050650,14.98542787,141.61,141.57,0.80273277]
[1641621051049,3.24134237,141.59,141.54,0.80273277]
[1641621052550,14.98542787,141.6,141.54,0.80273277]
[1641621053254,14.98542787,141.59,141.54,0.80273277]
[1641621053751,14.98542787,141.59,141.54,4.80273277]
[1641621053951,14.98542787,141.59,141.55,4.0]
[1641621054251,14.98542787,141.59,141.56,4.0]
[1641621054650,14.98542787,141.59,141.57,0.80273277]
[1641621054853,18.22677024,141.62,141.57,0.80273277]
[1641621056454,18.22677024,141.62,141.56,0.80273277]
[1641621056951,18.22677024,141.62,141.58,0.80273277]
[1641621057553,18.22677024,141.62,141.56,0.80273277]
[1641621057954,18.22677024,141.62,141.56,4.80273277]
[1641621058155,14.98542787,141.62,141.56,0.80273277]
[1641621058357,14.98542787,141.62,141.57,0.80273277]
[1641621058859,14.98542787,141.62,141.57,7.85865092]
[1641621059256,14.98542787,141.62,141.58,0.80273277]
[1641621060159,18.22677024,141.64,141.58,0.80273277]
[1641621062560,14.98542787,141.64,141.58,9.49773277]
[1641621062760,14.98542787,141.64,141.58,5.49773277]
[1641621062964,14.98542787,141.64,141.59,0.80273277]
[1641621063261,18.22677024,141.64,141.59,0.80273277]
[1641621063461,18.22677024,141.64,141.59,4.80273277]
[1641621063960,18.22677024,141.64,141.6,0.80273277]
[1641621064262,14.98542787,141.63,141.6,0.80273277]
[1641621064662,14.98542787,141.63,141.6,28.46752277]
[1641621065261,14.98542787,141.64,141.61,0.80273277]
[1641621066764,14.98542787,141.64,141.63,7.05243485]
[1641621067361,14.98542787,141.64,141.63,7.85516762]
[1641621067864,22.22677024,141.68,141.63,7.85516762]
[1641621068266,22.22677024,141.68,141.63,0.80273277]
[1641621068463,4.01046381,141.67,141.64,0.80273277]
[1641621068664,14.98542787,141.66,141.64,0.80273277]
[1641621069066,14.98542787,141.66,141.64,3.277e-05]
[1641621069266,14.98542787,141.66,141.61,3.277e-05]
[1641621069665,14.98542787,141.65,141.61,3.277e-05]
[1641621070267,18.22677024,141.65,141.61,3.277e-05]
[1641621070868,14.98542787,141.64,141.61,3.277e-05]
[1641621073471,14.98542787,141.63,141.6,27.66479]
[1641621073872,14.98542787,141.63,141.61,3.277e-05]
[1641621074372,14.98542787,141.62,141.61,3.277e-05]
[1641621075171,14.98542787,141.64,141.61,3.277e-05]
[1641621075971,14.98542787,141.63,141.61,3.277e-05]
[1641621077075,14.98542787,141.62,141.61,3.277e-05]
[1641621078677,41.8075082,141.65,141.61,3.277e-05]
[1641621079285,4.01147236,141.64,141.61,3.277e-05]
[1641621080477,8.01147236,141.64,141.61,3.277e-05]
[1641621080680,18.99933264,141.62,141.55,12.04959164]
[1641621080879,14.99933264,141.62,141.55,4.99292662]
[1641621081081,4.0,141.61,141.55,4.99292662]
[1641621081284,4.0,141.61,141.52,22.0435871]
[1641621081483,4.0,141.61,141.53,5.00032527]
[1641621081484,5.00032527,141.57,141.53,5.00032527]
[1641621082184,5.00032527,141.57,141.54,0.80247757]
[1641621082382,5.00032527,141.55,141.54,0.80247757]
[1641621082985,5.00032527,141.55,141.53,0.80247757]
[1641621087093,5.00032527,141.56,141.53,0.80247757]
[1641621089692,5.00032527,141.56,141.54,7.05716302]
[1641621090192,5.00032527,141.56,141.55,0.80247757]
[1641621090391,32.66511527,141.59,141.55,7.66647757]
[1641621090892,32.66511527,141.59,141.56,7.05616709]
[1641621091091,32.66511527,141.59,141.56,7.85864466]
[1641621091492,32.66511527,141.59,141.57,0.80247757]
[1641621093696,5.00032527,141.58,141.57,0.80247757]
[1641621094399,5.00032527,141.58,141.54,0.80247757]
[1641621095999,5.00032527,141.57,141.54,0.80247757]
[1641621097305,5.00032527,141.58,141.54,0.80247757]
[1641621097805,5.00032527,141.58,141.52,5.80280284]
[1641621098104,5.00032527,141.56,141.52,0.80247757]
[1641621098306,5.00032527,141.56,141.53,0.80247757]
[1641621098606,5.00032527,141.56,141.52,0.80247757]
[1641621102711,5.00032527,141.55,141.52,0.80247757]
[1641621105814,5.00032527,141.56,141.52,0.80247757]
[1641621106716,5.00032527,141.55,141.52,5.80280284]
[1641621107119,5.00032527,141.55,141.53,0.80247757]
[1641621108426,5.00032527,141.56,141.53,5.80280284]
[1641621108823,5.00032527,141.56,141.54,0.80247757]
[1641621110624,5.00032527,141.56,141.53,0.80247757]
[1641621110824,5.00032527,141.55,141.53,5.80280284]
[1641621111626,5.00032527,141.56,141.53,5.80280284]
[1641621111825,5.00032527,141.56,141.54,4.80247757]
[1641621112025,5.00032527,141.56,141.54,0.80247757]
[1641621112430,5.00032527,141.57,141.55,0.80247757]
[1641621113326,5.00032527,141.56,141.55,0.80247757]
[1641621114027,5.00032527,141.56,141.54,0.80247757]
[1641621117433,5.00032527,141.56,141.54,5.80280284]
[1641621117934,5.00032527,141.56,141.55,0.80247757]
[1641621124842,9.00032527,141.56,141.55,0.80247757]
[1641621125042,5.00032527,141.56,141.55,0.80247757]
[1641621125742,18.24017462,141.59,141.55,0.80247757]
[1641621125943,3.24084198,141.56,141.55,0.80247757]
[1641621126344,3.24084198,141.56,141.54,0.80247757]
[1641621126945,14.99933264,141.57,141.54,0.80247757]
[1641621128047,5.00771604,141.56,141.54,5.80280284]
[1641621128447,5.00771604,141.56,141.55,7.05616709]
[1641621128648,5.00771604,141.56,141.55,7.85864466]
[1641621128850,5.00771604,141.57,141.55,14.61729161]
[1641621129651,5.00771604,141.57,141.56,0.80247757]
[1641621129851,5.00771604,141.58,141.56,7.56112452]
[1641621130451,5.00771604,141.59,141.57,0.80247757]
[1641621130650,5.00771604,141.59,141.57,6.17347757]
[1641621130952,5.00771604,141.59,141.58,0.80247757]
[1641621132052,32.67250604,141.6,141.58,0.80247757]
[1641621133953,27.66479,141.6,141.58,0.80247757]
[1641621134355,5.00771604,141.61,141.58,0.80247757]
[1641621135054,38.18479,141.62,141.58,0.80247757]
[1641621135055,43.19250604,141.62,141.58,5.80280284]
[1641621135554,43.19250604,141.62,141.59,0.80247757]
[1641621135755,15.52771604,141.62,141.59,0.80247757]
[1641621136255,5.00771604,141.62,141.6,7.05442489]
[1641621136856,5.00771604,141.62,141.6,14.44642489]
[1641621137054,5.00771604,141.62,141.61,0.80247757]
[1641621137256,4.0,141.64,141.61,5.80280284]
[1641621137556,4.0,141.64,141.61,7.55809296]
[1641621137858,4.0,141.64,141.62,0.80247757]
[1641621140162,4.0,141.64,141.6,19.44675016]
[1641621140163,4.0,141.64,141.61,0.80247757]
[1641621141564,23.64730164,141.66,141.61,0.80247757]
[1641621142866,80.2177,141.67,141.64,4.0]
[1641621143068,5.00771604,141.69,141.61,0.80247757]
[1641621143268,5.00771604,141.69,141.68,4.0]
[1641621143469,5.00771604,141.69,141.68,9.083]
[1641621143968,5.00771604,141.69,141.68,9.88547757]
[1641621144169,27.66479,141.71,141.68,9.88547757]
[1641621144370,27.66479,141.71,141.68,5.88547757]
[1641621144969,27.66479,141.71,141.69,0.80247757]
[1641621147771,27.66479,141.71,141.67,0.80247757]
[1641621147971,27.66479,141.71,141.67,4.80247757]
[1641621148172,27.66479,141.71,141.67,0.80247757]
[1641621148572,27.66479,141.71,141.68,4.0]
[1641621148972,27.66479,141.71,141.67,0.80247757]
[1641621149176,27.66479,141.71,141.69,4.80247757]
[1641621149674,27.66479,141.71,141.7,0.80247757]
[1641621150075,27.66479,141.71,141.69,4.0]
[1641621150274,27.66479,141.71,141.69,7.04994889]
[1641621150477,27.66479,141.71,141.69,11.04994889]
[1641621150677,27.66479,141.71,141.7,0.80247757]
[1641621152779,70.338,141.74,141.7,0.80247757]
[1641621152976,10.4,141.75,141.7,0.80247757]
[1641621155385,27.66479,141.71,141.7,0.80247757]
[1641621155881,27.66479,141.71,141.66,0.80247757]
[1641621156382,27.66479,141.71,141.61,4.0]
[1641621156581,47.66479,141.71,141.6,5.00032527]
[1641621157481,27.66479,141.66,141.6,4.0]
[1641621157680,27.66479,141.66,141.6,7.05442489]
[1641621157886,27.66479,141.66,141.62,7.05342973]
[1641621158283,27.66479,141.66,141.63,0.80187061]
[1641621158484,27.66479,141.66,141.64,4.0]
[1641621158683,27.66479,141.66,141.63,5.62887061]
[1641621158984,27.66479,141.66,141.65,0.80187061]
[1641621159182,27.66479,141.66,141.63,4.827]
[1641621159183,27.66479,141.66,141.64,4.80187061]
[1641621159384,27.66479,141.66,141.64,0.80187061]
[1641621159584,27.66479,141.66,141.64,4.80187061]
[1641621159785,27.66479,141.66,141.65,0.80187061]
[1641621161187,27.66479,141.66,141.64,4.80187061]
[1641621161385,5.00771604,141.7,141.64,0.80187061]
[1641621161586,5.00771604,141.7,141.65,0.80187061]
[1641621161787,27.66479,141.68,141.65,0.80187061]
[1641621161986,27.66479,141.68,141.64,0.80187061]
[1641621163488,32.67250604,141.68,141.64,0.80187061]
[1641621166091,5.00771604,141.67,141.64,0.80187061]
[1641621168097,5.00771604,141.67,141.64,4.80187061]
[1641621168297,5.00771604,141.67,141.64,0.80187061]
[1641621169097,32.67250604,141.68,141.64,0.80187061]
[1641621169996,27.66479,141.68,141.64,0.80187061]
[1641621170197,27.66479,141.68,141.64,4.0]
[1641621170700,27.66479,141.68,141.65,0.80187061]
[1641621173604,27.66479,141.68,141.64,0.80187061]
[1641621173804,27.66479,141.68,141.64,5.80219588]
[1641621174102,27.66479,141.68,141.64,9.80219588]
[1641621174505,27.66479,141.68,141.65,0.80187061]
[1641621175811,27.66479,141.68,141.61,14.98542787]
[1641621176208,27.66479,141.68,141.58,26.04059931]
[1641621176430,27.66479,141.62,141.58,26.04059931]
[1641621176609,27.66479,141.62,141.58,22.04059931]
[1641621176809,27.66479,141.62,141.59,4.0]
[1641621177211,27.66479,141.62,141.6,0.80196913]
[1641621179117,27.66479,141.62,141.59,0.80196913]
[1641621181120,27.66479,141.62,141.57,4.80196913]
[1641621181518,27.66479,141.62,141.57,0.80196913]
[1641621181718,27.66479,141.62,141.58,0.80196913]
[1641621182118,27.66479,141.62,141.57,4.80196913]
[1641621182519,27.66479,141.62,141.58,0.80196913]
[1641621183723,14.99933264,141.66,141.58,0.80196913]
[1641621184221,3.23698348,141.66,141.58,0.80196913]
[1641621184422,27.66479,141.61,141.58,0.80196913]
[1641621185521,27.66479,141.61,141.57,4.80196913]
[1641621185721,25.39933264,141.66,141.57,4.80196913]
[1641621185922,25.39933264,141.66,141.59,0.80196913]
[1641621186120,25.39933264,141.66,141.58,0.80196913]
[1641621186330,27.66479,141.63,141.59,4.0]
[1641621187027,30.90276146,141.65,141.61,4.0]
[1641621187222,30.90276146,141.65,141.63,4.0]
[1641621187422,25.39933264,141.66,141.63,4.0]
[1641621187623,10.4,141.66,141.64,0.80196913]
[1641621188522,10.4,141.66,141.59,7.05467372]
[1641621188523,10.4,141.66,141.6,0.80196913]
[1641621188823,10.4,141.66,141.64,4.0]
[1641621189222,10.4,141.66,141.61,1.75323613]
[1641621189623,10.4,141.66,141.65,0.80196913]
[1641621190123,10.4,141.66,141.62,0.80196913]
[1641621190324,38.06479,141.66,141.64,4.0]